Cogmind - Beta 13 @@@ ROGUE MODE // 2024.04.16 @ 14:20:37 Player: Jason Result: Destroyed by S-10 Pest with Light Assault Rifle Performance ------------- Evolutions (1) 500 Regions Visited (3) 600 Robots Destroyed (40) 200 Value Destroyed (808) 808 Prototype IDs (5) 100 Alien Tech Used (0) 0 Bonus (-11) -11 TOTAL SCORE: 2197 Bonus ------- Friendly Fire -11 Cogmind --------- Core Integrity 0/400 Matter 300/300 Energy 100/100 System Corruption 0% Temperature Cool (0) Movement Core (50) Location -9/Materials Parts ------- > --- POWER (1) -------- (None) > --- PROPULSION (3) --- (None) > --- UTILITY (3) ------ Signal Interpreter > --- WEAPON (2) ------- Mace > --- INVENTORY (5) ---- Small Storage Unit Peak State ------------ > --- POWER ------------ Cooled Ion Engine > --- PROPULSION ------- Flight Unit Flight Unit > --- UTILITY ---------- Experimental Sensor Array Signal Interpreter Hacking Suite > --- WEAPON ----------- Light Assault Rifle Grenade Launcher > --- INVENTORY -------- Ion Engine Small Storage Unit Sensor Array Shield Generator Particle Gun [Rating: 20] Favorites ----------- Power Ion Engine Engine Ion Engine Propulsion Aluminum Leg Leg Aluminum Leg Wheel Wheel Hover Unit Improved Hover Unit Flight Unit Flight Unit Utility Small Storage Unit Device Structural Scanner Storage Small Storage Unit Processor Signal Interpreter Hackware Hacking Suite Protection Light Armor Plating Weapon Grenade Launcher Energy Gun Heavy EM Pulse Gun Ballistic Gun Heavy Assault Rifle Launcher Grenade Launcher Impact Weapon Mace Slashing Weapon Katana Build | -11 -10 -10 -9 ------- Run | Yrd Mat Min Mat Slots Evolved 2 | . . . 2 Power . | . . . . Propulsion 1 | . . . 1 Utility 1 | . . . 1 Weapon . | . . . . Parts Attached 46 | 8 11 13 14 Power 6 | 1 . 1 4 Engine 6 | 1 . 1 4 Core . | . . . . Reactor . | . . . . Propulsion 11 | 2 2 5 2 Treads . | . . . . Leg 6 | 2 2 2 . Wheel 1 | . . . 1 Hover 1 | . . . 1 Flight 3 | . . 3 . Utility 15 | 2 4 4 5 Device 8 | 1 1 3 3 Storage 4 | 1 3 . . Processor 1 | . . 1 . Hackware 1 | . . . 1 Protection 1 | . . . 1 Artifact . | . . . . Weapon 14 | 3 5 3 3 Energy Gun 4 | 1 2 1 . Energy Cannon . | . . . . Ballistic Gun 6 | 2 2 1 1 Ballistic Cannon . | . . . . Launcher 2 | . 1 1 . Special Weapon . | . . . . Impact Weapon 1 | . . . 1 Slashing Weapon 1 | . . . 1 Piercing Weapon . | . . . . Special Melee Weapon . | . . . . Unidentified Prototypes 2 | . . 1 1 Parts Lost 18 | . 2 2 14 Power 2 | . . . 2 Propulsion 5 | . . 1 4 Utility 6 | . . 1 5 Weapon 5 | . 2 . 3 Highest Loss Streak 7 | . 2 1 7 To Critical Strikes 1 | . . . 1 Average Slot Usage (%) 88 | . 99 91 66 Engine 13 | . 14 14 10 Leg 12 | . 28 9 . Flight 9 | . . 14 11 Device 10 | . 14 10 6 Storage 9 | . 14 10 . Processor 4 | . . 3 11 Hackware 1 | . . . 4 Energy Gun 6 | . 13 4 . Ballistic Gun 10 | . 12 11 4 Launcher 7 | . 1 12 4 Naked Turns . | . . . . Heaviest Build 32 | 15 32 17 14 Greatest Support 20 | 20 20 20 10 Greatest Overweight (x) 4 | 1 1 4 4 Average Overweight (x) . | . . . . Largest Inventory Capacity 15 | 8 15 8 5 Average Capacity 7 | 7 8 7 5 Most Carried 9 | 4 9 8 5 Average Carried 6 | 3 7 7 3 Final Capacity 8 | 8 8 5 5 Final Carried 8 | 4 8 5 1 Class Distribution -------------------- 80% | Mutant 19% | Scavenger-Mutant Dominant Class ---------------- Mutant | -10/Materials Mutant | -10/Mines Mutant | -9/Materials Resources | -11 -10 -10 -9 ----------- Run | Yrd Mat Min Mat Matter Collected 1062 | 336 190 367 169 Remotely . | . . . . Salvage Created 1050 | 153 285 359 253 Parts 65 | 15 17 22 11 Haulers Intercepted 1 | . . . 1 Recyclers Shooed 1 | . . 1 . Parts Field Recycled . | . . . . Retrieved Matter . | . . . . Parts Self-Destructed . | . . . . Prevented . | . . . . Kills | -11 -10 -10 -9 ------- Run | Yrd Mat Min Mat Combat Hostiles Destroyed 26 | . 7 10 9 Melee 2 | . . . 2 Guns 9 | . 6 3 . AOE 11 | . 1 7 3 Classes Destroyed 10 | 2 4 1 3 Worker 2 | . 1 . 1 Builder 1 | . . 1 . Tunneler 5 | 4 . 1 . Hauler 1 | . . . 1 Recycler 3 | 1 . 2 . Operator 1 | . . . 1 Watcher 1 | . 1 . . Swarmer 11 | . 2 6 3 Grunt 13 | . 5 4 4 Sentry 2 | . . . 2 Best Kill Streak 5 | 3 4 4 5 Combat Bots Only 3 | . 3 3 3 Max Kills in Single Turn 4 | 2 1 4 2 Gunslinging . | . . . . Exploded 3 | . 1 3 1 Melee 1 | . . . 1 Uniques/NPCs Destroyed . | . . . . Combat | -11 -10 -10 -9 -------- Run | Yrd Mat Min Mat Hostile Shots Fired 199 | . 50 39 110 Missed 50 | . 12 12 26 Damage Taken 1819 | . 409 391 1019 Core 553 | . 36 113 404 Absorbed by Shields 28 | . . . 28 Regen/Repaired (Parts) 11 | . . . 11 Core Remaining (%) 70 | 100 . 40 . Volleys Fired 100 | 15 36 40 9 Largest 2 | 2 2 2 2 Hottest 95 | 70 90 95 50 Shots Fired 159 | 30 65 50 14 Gun 150 | 30 65 46 9 Cannon . | . . . . Launcher 9 | . . 4 5 Special . | . . . . Kinetic 111 | 21 36 45 9 Thermal 10 | 9 . 1 . Explosive 9 | . . 4 5 Electromagnetic 29 | . 29 . . Robot Hit Streak 8 | 8 7 6 7 Robot Miss Streak 6 | 1 6 2 2 Penetration Max . | . . . . Secondary Targets 4 | . 3 1 . Max Gunslinging Chain 1 | . 1 1 . Shots Hit Robots 100 | 18 32 28 22 Core Hits 49 | 6 10 20 13 Critical Kills 1 | . 1 . . Critical Parts Destroyed 2 | . . . 2 Critical Strikes 4 | . 1 . 3 Destroy 1 | . 1 . . Smash 2 | . . . 2 Sever 1 | . . . 1 Melee Attacks 21 | . . . 21 Impact 17 | . . . 17 Slashing 4 | . . . 4 Piercing . | . . . . Sneak Attacks . | . . . . Combat Hostiles . | . . . . Follow-up Attacks . | . . . . Damage Inflicted 2404 | 260 526 696 922 Guns 1071 | 260 467 297 47 Cannons . | . . . . Explosions 876 | . 59 399 418 Melee 457 | . . . 457 Ramming . | . . . . Kinetic 767 | 171 252 297 47 Thermal 148 | 89 59 . . Explosive 817 | . . 399 418 Electromagnetic 215 | . 215 . . Impact 394 | . . . 394 Slashing 63 | . . . 63 Piercing . | . . . . Highest Corruption . | . . . . Average Corruption . | . . . . Corruption Purged . | . . . . Corruption Blocked . | . . . . Overload Shots . | . . . . Overflow Damage 110 | . . . 110 Projectiles . | . . . . Explosions 10 | . . . 10 Melee 100 | . . . 100 Knockbacks . | . . . . Impact . | . . . . Kinetic . | . . . . Secondary . | . . . . Self-Inflicted Damage 96 | . 36 60 . Shots 3 | . 1 2 . Rammed . | . . . . Targets Rammed 1 | . . 1 . Kicked 1 | . . 1 . Crushed . | . . . . Highest Temperature 264 | 36 264 33 39 Average Temperature 43 | 15 78 5 17 Received Heat Transfer 578 | . 111 126 341 Effects 1 | . 1 . . Interference 1 | . 1 . . Siege Activations . | . . . . Robots Corrupted . | . . . . Combat Hostiles . | . . . . Parts Fried 7 | . 1 . 6 Impact Corruptions 8 | . . . 8 Robots Melted . | . . . . Combat Hostiles . | . . . . Parts Melted . | . . . . Heat Transferred 359 | 259 100 . . Parts Sabotaged . | . . . . Parts Stolen . | . . . . Parts Stripped . | . . . . Power Chain Reactions 1 | . 1 . . Alert | -11 -10 -10 -9 ------- Run | Yrd Mat Min Mat Peak Influence 270 | 25 155 265 270 Initial 44 | . 16 44 1 Average 90 | 9 67 95 132 Maximum Alert Level 1 | . . 1 1 Low Security (%) 91 | 100 100 99 62 Level 1 8 | . . . 37 Level 2 . | . . . . Level 3 . | . . . . Level 4 . | . . . . Level 5 . | . . . . High Security . | . . . . Max Security . | . . . . Squads Dispatched 2 | . 2 . . Investigation 1 | . 1 . . Extermination . | . . . . Reinforcement 1 | . 1 . . Assault . | . . . . Garrison . | . . . . Intercept . | . . . . Searches Triggered . | . . . . Construction Impeded . | . . . . Haulers Reinforced . | . . . . Active Scanning Responses . | . . . . Cargo Convoy Interrupts . | . . . . Stealth | -11 -10 -10 -9 --------- Run | Yrd Mat Min Mat Distress Signals 2 | . . . 2 Communications Jammed . | . . . . Distress Signals . | . . . . Times Spotted 50 | . 18 10 22 Peak Tracking Total 6 | . 4 5 6 Tactical Retreats 6 | . 1 . 5 Traps | -11 -10 -10 -9 ------- Run | Yrd Mat Min Mat Traps Triggered 1 | . 1 . . Indirectly . | . . . . Trap Hack Attempts . | . . . . Triggered . | . . . . Disarmed . | . . . . Reprogrammed . | . . . . Reused . | . . . . Traps Extracted . | . . . . Installed . | . . . . Triggered . | . . . . Machines | -11 -10 -10 -9 ---------- Run | Yrd Mat Min Mat Machines Disabled 2 | . . 2 . Max in Single Turn 2 | . . 2 . Machines Repaired . | . . . . Machines Dismantled . | . . . . Machines Sabotaged . | . . . . Overloaded Fab Kills . | . . . . Hacking | -11 -10 -10 -9 --------- Run | Yrd Mat Min Mat Machines Accessed 7 | . 2 . 5 Terminals 5 | . 2 . 3 Fabricators . | . . . . Repair Stations 1 | . . . 1 Recycling Units . | . . . . Scanalyzers 1 | . . . 1 Garrison Access . | . . . . Total Hacks 26 | . 11 . 15 Successful 18 | . 6 . 12 Failed 8 | . 5 . 3 Catastrophic 1 | . . . 1 Database Lockouts . | . . . . Manual . | . . . . Terminals 19 | . 11 . 8 Fabricators . | . . . . Repair Stations 5 | . . . 5 Recycling Units . | . . . . Scanalyzers 2 | . . . 2 Garrison Access . | . . . . Terminal Hacks 13 | . 6 . 7 Record 1 | . 1 . . Prototype ID Bank 2 | . 1 . 1 Emergency Access Points 4 | . 1 . 3 Alert Level 1 | . . . 1 Locate Traps 1 | . . . 1 Dispatch Records 1 | . 1 . . Maintenance Status 1 | . 1 . . Transport Status 1 | . 1 . . Investigation Status 1 | . . . 1 Fabricator Hacks . | . . . . Repair Station Hacks 3 | . . . 3 Scan Component 2 | . . . 2 Repair 1 | . . . 1 Recycling Unit Hacks . | . . . . Scanalyzer 2 | . . . 2 Insert Component 1 | . . . 1 Analyze 1 | . . . 1 Garrison Access Hacks . | . . . . Unauthorized Hacks . | . . . . Terminals . | . . . . Fabricators . | . . . . Repair Stations . | . . . . Recycling Units . | . . . . Scanalyzers . | . . . . Garrison Access . | . . . . Data Cores Recovered 1 | . . . 1 Used . | . . . . Hacking Detections 5 | . 1 . 4 Full Trace Events 3 | . 1 . 2 Feedback Events . | . . . . Feedback Blocked . | . . . . Robot Schematics Acquired . | . . . . Robots Built . | . . . . Authchips . | . . . . Time . | . . . . Total Robot Build Rating . | . . . . Part Schematics Acquired 1 | . . . 1 Parts Built . | . . . . Authchips . | . . . . Time . | . . . . Total Part Build Rating . | . . . . Parts Repaired 1 | . . . 1 Time 108 | . . . 108 Parts Recycled . | . . . . Recycled Matter . | . . . . Retrieved Matter . | . . . . Retrieved Components . | . . . . Parts Scanalyzed 1 | . . . 1 Part Schematics Acquired 1 | . . . 1 Parts Damaged 1 | . . . 1 Bothacking | -11 -10 -10 -9 ------------ Run | Yrd Mat Min Mat Used RIF Installer . | . . . . Robots Hacked . | . . . . Non-combat . | . . . . Combat . | . . . . Robot Hacks Applied . | . . . . Relay Couplers Released . | . . . . Fabnet Peak Effective % . | . . . . Robots Rewired . | . . . . Allies Hacked . | . . . . Hacks Repelled . | . . . . Allies | -11 -10 -10 -9 -------- Run | Yrd Mat Min Mat Total Allies 1 | . . 1 . Largest Group 1 | . . 1 . Highest-Rated Group 31 | . . 31 . Highest-Rated Ally 31 | . . 31 . Total Orders . | . . . . Ally Attacks . | . . . . Total Damage . | . . . . Kills . | . . . . Allies Corrupted . | . . . . Allies Melted . | . . . . Intel | -11 -10 -10 -9 ------- Run | Yrd Mat Min Mat Robot Analysis Total . | . . . . Derelict Logs Recovered 1 | . . 1 . Drone Launches . | . . . . Drone Recoveries . | . . . . Exploration | -11 -10 -10 -9 ------------- Run | Yrd Mat Min Mat Turns Passed 2144 | 128 599 932 485 Spaces Moved 1483 | 58 357 703 365 Core 10 | 4 . . 6 Treads . | . . . . Legs 673 | 54 357 262 . Wheels 38 | . . . 38 Hover 82 | . . . 82 Flight 680 | . . 441 239 Fastest Speed 37 | 50 120 37 37 Average Speed 105 | 116 120 114 74 Slowest Speed 360 | 120 190 360 280 Overloaded Moves . | . . . . Propulsion Burnouts . | . . . . Robots Hopped 1 | . . 1 . Cave-ins Triggered . | . . . . Exploration Rate (%) 48 | 4 53 95 41 Regions Visited 3 Branch Regions 1 Pre-discovered Areas 1 | . . 1 . Known Exits Taken 1 | . . 1 . Unknown Exits Taken 2 | 1 1 . . Scrap Searched 2 | . . 2 . Spaces Dug . | . . . . Terrain Destroyed 63 | . 2 29 32 Melee . | . . . . Projectile . | . . . . AOE 63 | . 2 29 32 Terrain Rammed . | . . . . Walls Destroyed . | . . . . Machines Disabled . | . . . . Actions | -11 -10 -10 -9 --------- Run | Yrd Mat Min Mat Total 1862 | 84 463 785 530 Wait 167 | . 38 16 113 Move 1478 | 57 356 700 365 Hop 1 | . . 1 . Pick Up 22 | 4 11 3 4 Fast Attach 19 | 7 2 4 6 Attach 9 | . 2 1 6 Detach 3 | . 2 1 . Swap 18 | 1 7 8 2 Drop 23 | . 9 10 4 Fire 100 | 15 36 40 9 Melee 21 | . . . 21 Ram . | . . . . Kick 1 | . . 1 . Crush . | . . . . Escape Stasis . | . . . . Rewire . | . . . . Trap . | . . . . Miscellaneous . | . . . . Route ------- -11/Scrapyard -10/Materials (discovered 2 exits: *Mat / [*Min]) -10/Mines (discovered 2 exits: *Mat x2) -9/Materials (discovered 3 exits: *Mat / [*Min] / *Sto) History --------- Turn | Location | Event 8 | -11/Scrapyard | Discovered new exit (range 15) 129 | -11/Scrapyard | Entered Materials 305 | -10/Materials | Build established: Mutant 610 | -10/Materials | Discovered new exit (range 15) 660 | -10/Materials | Discovered new exit (range 13) 728 | -10/Materials | Entered Mines 1484 | -10/Mines | Learned location of Storage (-9) 1557 | -10/Mines | Found a damaged Exp. Sensor Array with a note attached 1558 | -10/Mines | Found Prototype Device 1559 | -10/Mines | Identified Exp. Sensor Array 1574 | -10/Mines | Discovered new exit (range 5) 1575 | -10/Mines | Escorted by a lone wolf Derelict 1575 | -10/Mines | Identified exit to Materials 1598 | -10/Mines | Discovered exit to Materials (range 6) 1613 | -10/Mines | Joined a pair of Derelicts in attacking an 0b10 outpost 1623 | -10/Mines | Core integrity fell below 50% 1660 | -10/Mines | Entered Materials 1660 | -9/Materials | Evolved 2 slots: Propulsion x1, Utility x1 1661 | -9/Materials | Discovered new exit (range 11) 1671 | -9/Materials | Identified exit to Storage 1724 | -9/Materials | Build established: Scavenger-Mutant 1795 | -9/Materials | Repaired Exp. Sensor Array 1840 | -9/Materials | Discovered new exit (range 12) 1904 | -9/Materials | Lost 3 parts (1n1u1w) 2000 | -9/Materials | Core integrity fell below 50% 2030 | -9/Materials | Lost 7 parts (1p2n2u2w) 2079 | -9/Materials | Discovered new exit (range 5) 2093 | -9/Materials | Identified exit to Materials 2138 | -9/Materials | Core integrity fell below 20% 2145 | -9/Materials | Destroyed by S-10 Pest with Light Assault Rifle Last Messages --------------- effect. 02129_ S-10 Pest system terminally corrupted. 02129_ Lgt. Assault Rifle fried. 02129_ Flight Unit fried. 02130_ K-01 Serf collects debris. 02131_ Lgt. Armor Plating destroyed. 02133_ K-01 Serf collects debris. 02136_ Destroyed Heat Sink. 02136_ Y-45 Defender system corrupted by crushing effect. 02136_ K-01 Serf collects debris. 02137_ Cld. Ion Engine destroyed. 02140_ K-01 Serf collects debris. 02144_ Y-45 Defender suffers critical hit (Smash). 02144_ Destroyed Heat Sink. 02144_ Y-45 Defender system corrupted by crushing effect. 02145_ Y-45 Defender system terminally corrupted. Map ----- +----------------------------------------------------+ | | | | | | | | | | | | | | | | | | | | | | | | | | | | | | | | | | | | | | | ??????#############################??????????????? | | ??????# """"" """" # #??????????????? | | ??????# """"" "" " s #??????????????? | | ?????## """"" "" " # #??????????????? | | ?????# # k #??????????????? | | ??????# # = #??????????????? | | ??????# %=[ # %@% #??????????????? | | ??????#######+###########/##########?????????????? | | ???????# %[ ?????????? | | ???????# < ?????????? | | ???????# ?????????? | | ????######## % ############ ###### ??????????? | | ????# # #??????????? #??????????????????? | | ????# # #??????????? #??????????????????? | | ????# """ + #??????????? #??????????????????? | | ????# """ # #???????????? #??????????????????? | | ????# """ # #???????????? #??????????????????? | | ????# # #??????????? #??????????????????? | | ??######/### #??????????? #??????????????????? | | ??# # #??????????? a#???????????? ???? | | ??# # #??????????? #???????????# ???? | | ??# + ########???? #???????????# ???? | | ??# "" # % #???? #???????????# ???? | | ??# """ # % % #???? #???????????# +??? | | ??# """""# %#???# #???????????# #??? | | ??# """""# ### % ##### #???????????# #??? | | ??# """ # #?# !% ##T## #???????????# #??? | | ??# # ### % #???????????# #??? | | ??########## # " #???????????+ #??? | | ##### #"" ] +???????????# #??? | | # *= #"T!! #??????????## ##?? | +----------------------------------------------------+ Best States ------------- Heat Dissipation 28 Energy Generation 14 Energy Capacity 280 Matter Stores 300 Matter Capacity 300 Sight Range 16 Robot Scan Range 20 Terrain Scan Range 16 Terrain Scan Density 10 Armor Coverage 150 Evasion (%) 62 Offensive Hacking 10 Item Schematics ----------------- Imp. Terrain Scanner | -9/Materials | Scanalyzed Robot Schematics ------------------ None Fabricated ------------ Nothing Alien Tech Used ----------------- None Achievements -------------- None Challenges ------------ None Game ------ Seed AccelerationGravmagWheel Manual? 0 Play Time 00:42:16 Cumulative 18.2 hours Start 2024.04.16 @ 12:03:20 End 2024.04.16 @ 14:20:37 Sessions 2 Manual Loads 0 Difficulty Rogue Special Mode None Game No. 17 Rogue 17 Adventurer 0 Explorer 0 Win Type - Total 0 Types 0/0/0/0/0/0/0/0/0 Lore% 2 Gallery% 15 Achievement% 8 Wizard Run 0 Options --------- Layout 1 ASCII 0 Keyboard 0 Movement Mouse Keybinds 0 Fullscreen 2 Font 24/Smallcaps Map View 50x35 Zoom Use 0% Tactical HUD 1 Map Filters NONE Filters NONE Steam 1 RUN: 0758c9a3-df27-48c9-8b70-47a19b9efe1a